fUST/lending_fUST_20251119
["ID","MTS","AMOUNT","RATE_DAILY","PERIOD"]
[394376751,1763509191995,-102.38417654,0.00016314,2]
[394376752,1763509197772,-397.61582346,0.00016314,2]
[394376753,1763509197806,-500.0,0.00016314,2]
[394376754,1763509197842,-500.0,0.00016314,2]
[394376755,1763509197877,-500.0,0.00016314,2]
[394376756,1763509197909,-500.0,0.00016314,2]
[394376757,1763509197943,-500.0,0.00016314,2]
[394376758,1763509197975,-500.0,0.00016314,2]
[394376759,1763509198009,-500.0,0.00016314,2]
[394376760,1763509198040,-500.0,0.00016314,2]
[394376761,1763509198070,-500.0,0.00016314,2]
[394376762,1763509200898,-182.58689937,0.00015778,2]
[394376763,1763509216261,-328.65641887,0.00016132,2]
[394376764,1763509253223,1686.19847476,0.00016136,2]
[394376765,1763509300671,-2251.29259707,0.00016216,2]
[394376766,1763509300711,-300.0,0.00016307,2]
[394376767,1763509300749,-9185.32,0.00016308,3]
[394376768,1763509300787,-4592.66,0.00016308,3]
[394376769,1763509300824,-2296.33,0.00016308,3]
[394376770,1763509300862,-1148.17,0.00016308,3]
[394376771,1763509300900,-400.77541225,0.00016308,3]
[394376772,1763509300938,-574.08,0.00016308,3]
[394376773,1763509300977,-13867.83952595,0.00016308,2]
[394376774,1763509301020,-250.0,0.00016308,2]
[394376775,1763509301061,-250.0,0.00016308,2]
[394376776,1763509301103,-250.0,0.00016308,2]
[394376777,1763509301145,-209.40437684,0.00016308,2]
[394376778,1763509301184,-250.0,0.00016308,2]
[394376779,1763509301226,-250.0,0.00016308,2]
[394376780,1763509301268,-250.0,0.00016308,2]
[394376781,1763509301308,-250.0,0.00016308,2]
[394376782,1763509301348,-206.87651652,0.00016308,2]
[394376783,1763509301385,-250.0,0.00016308,2]
[394376784,1763509301424,-250.0,0.00016308,2]
[394376785,1763509301463,-250.0,0.00016308,2]
[394376786,1763509301501,-250.0,0.00016308,2]
[394376787,1763509301544,-250.0,0.00016308,2]
[394376788,1763509301584,-250.0,0.00016308,2]
[394376789,1763509301624,-250.0,0.00016308,2]
[394376790,1763509301665,-250.0,0.00016308,2]
[394376791,1763509301792,-250.0,0.00016308,2]
[394376792,1763509301831,-250.0,0.00016308,2]
[394376793,1763509301868,-250.0,0.00016308,2]
[394376794,1763509301907,-186.1965154,0.00016313,2]
[394376795,1763509301948,-201.74778638,0.00016313,2]
[394376796,1763509301988,-500.0,0.00016313,2]
[394376797,1763509302034,-500.0,0.00016313,2]
[394376798,1763509302081,-500.0,0.00016313,2]
[394376799,1763509302126,-500.0,0.00016313,2]
[394376800,1763509302165,-500.0,0.00016313,2]
[394376801,1763509302209,-500.0,0.00016313,2]
[394376802,1763509302247,-500.0,0.00016313,2]
[394376803,1763509302291,-470.73141958,0.00016313,2]
[394376804,1763509302330,-500.0,0.00016313,2]
[394376805,1763509302375,-500.0,0.00016313,2]
[394376806,1763509302421,-500.0,0.00016313,2]
[394376807,1763509302462,-500.0,0.00016313,2]
[394376808,1763509302504,-500.0,0.00016313,2]
[394376809,1763509302553,-500.0,0.00016313,2]
[394376810,1763509302597,-500.0,0.00016313,2]
[394376811,1763509302639,-500.0,0.00016313,2]
[394376812,1763509302687,-500.0,0.00016313,2]
[394376813,1763509302727,-609.84921775,0.00016313,2]
[394376814,1763509302777,-500.0,0.00016313,2]
[394376815,1763509302819,-500.0,0.00016313,2]
[394376816,1763509302864,-500.0,0.00016313,2]
[394376817,1763509302905,-500.0,0.00016313,2]
[394376818,1763509302944,-500.0,0.00016313,2]
[394376819,1763509302984,-500.0,0.00016313,2]
[394376820,1763509303026,-500.0,0.00016313,2]
[394376821,1763509303067,-573.31657975,0.00016313,2]
[394376822,1763509303106,-500.0,0.00016313,2]
[394376823,1763509303145,-1200.0,0.00016313,2]
[394376824,1763509303182,-221.47,0.00016315,2]
[394376825,1763509303220,-500.0,0.00016316,2]
[394376826,1763509303258,-358.78455137,0.00016317,2]
[394376827,1763509303297,-545.38229305,0.00016317,2]
[394376828,1763509303338,-890000.0,0.00016318,2]
[394376829,1763509303376,-171813.3976436,0.00016344,2]
[394376830,1763509303414,-151.0,0.000164,2]
[394376831,1763509303557,-151.0,0.000164,2]
[394376832,1763509303596,-151.0,0.000164,2]
[394376833,1763509303632,-151.0,0.000164,2]
[394376834,1763509303669,-151.0,0.000164,2]
[394376835,1763509303710,-151.0,0.000164,2]
[394376836,1763509303748,-151.0,0.000164,2]
[394376837,1763509303785,-3751.6503329,0.00016414,2]
[394376838,1763509303822,-295.20840448,0.00016417,2]
[394376839,1763509303859,-500.0,0.00016417,2]
[394376840,1763509303896,-500.0,0.00016417,2]
[394376841,1763509303932,-500.0,0.00016418,2]
[394376842,1763509303969,-403.50249142,0.00016418,2]
[394376843,1763509304005,-1000.0,0.00016418,2]
[394376844,1763509304046,-1000.0,0.00016418,2]
[394376845,1763509304085,-1000.0,0.00016418,2]
[394376846,1763509304123,-1000.0,0.00016418,2]
[394376847,1763509304159,-1000.0,0.00016418,2]
[394376848,1763509304194,-279.58756699,0.00016418,2]
[394376849,1763509304230,-871.7,0.0001642,2]
[394376850,1763509304266,-532.15876621,0.00016434,4]
[394376851,1763509304303,-740.96039341,0.00016434,4]
[394376852,1763509304338,-151.0,0.00016438,2]
[394376853,1763509304374,-151.0,0.00016438,2]
[394376854,1763509304411,-151.0,0.00016438,2]
[394376855,1763509304457,-151.0,0.00016438,2]
[394376856,1763509304504,-151.0,0.00016438,2]
[394376857,1763509304555,-151.0,0.00016438,2]
[394376858,1763509304604,-151.0,0.00016438,2]
[394376859,1763509304652,-151.0,0.00016438,2]
[394376860,1763509304697,-151.0,0.00016438,2]
[394376861,1763509304749,-151.0,0.00016438,2]
[394376862,1763509304804,-151.0,0.00016438,2]
[394376863,1763509304849,-151.0,0.00016438,2]
[394376864,1763509304902,-151.0,0.00016438,2]
[394376865,1763509304950,-151.0,0.00016438,2]
[394376866,1763509304996,-151.0,0.00016438,2]
[394376867,1763509305046,-151.0,0.00016438,2]
[394376868,1763509305094,-151.0,0.00016438,2]
[394376869,1763509305141,-151.0,0.00016438,2]
[394376870,1763509305187,-245.404709,0.00016438,2]
[394376871,1763509305234,-151.0,0.00016438,2]
[394376872,1763509305279,-151.0,0.00016438,2]
[394376873,1763509305324,-151.0,0.00016438,2]
[394376874,1763509305372,-151.0,0.00016438,2]
[394376875,1763509305418,-151.0,0.00016438,2]
[394376876,1763509305465,-151.0,0.00016438,2]
[394376877,1763509305514,-151.0,0.00016438,2]
[394376878,1763509305562,-151.0,0.00016438,2]
[394376879,1763509305827,-151.0,0.00016438,2]
[394376880,1763509305866,-151.0,0.00016438,2]
[394376881,1763509305903,-151.0,0.00016438,2]
[394376882,1763509305939,-151.0,0.00016438,2]
[394376883,1763509305976,-151.0,0.00016438,2]
[394376884,1763509306013,-151.0,0.00016438,2]
[394376885,1763509306059,-151.0,0.00016438,2]
[394376886,1763509306097,-151.0,0.00016438,2]
[394376887,1763509306136,-151.0,0.00016438,2]
[394376888,1763509306175,-151.0,0.00016438,2]
[394376889,1763509306213,-298.933524,0.00016438,2]
[394376890,1763509306251,-151.0,0.00016438,2]
[394376891,1763509306288,-151.0,0.00016438,2]
[394376892,1763509306325,-151.0,0.00016438,2]
[394376893,1763509306364,-151.0,0.00016438,2]
[394376894,1763509306402,-267.323521,0.00016438,2]
[394376895,1763509306440,-10387.6621466,0.00016438,2]
[394376896,1763509306479,-599.608543,0.00016438,2]
[394376897,1763509306518,-599.608543,0.00016438,2]
[394376898,1763509306557,-599.608543,0.00016438,2]
[394376899,1763509306596,-599.608543,0.00016438,2]
[394376900,1763509306635,-599.608543,0.00016438,2]
[394376901,1763509306673,-599.608543,0.00016438,2]
[394376902,1763509306712,-599.608543,0.00016438,2]
[394376903,1763509306751,-599.608543,0.00016438,2]
[394376904,1763509306806,-500.0,0.00016438,2]
[394376905,1763509306848,-500.0,0.00016438,2]
[394376906,1763509306894,-500.0,0.00016438,2]
[394376907,1763509306939,-500.0,0.00016438,2]
[394376908,1763509306981,-500.0,0.00016438,2]
[394376909,1763509307027,-500.0,0.00016438,2]
[394376910,1763509307069,-500.0,0.00016438,2]
[394376911,1763509307111,-500.0,0.00016438,2]
[394376912,1763509307158,-500.0,0.00016438,2]
[394376913,1763509307198,-500.0,0.00016438,2]
[394376914,1763509307236,-500.0,0.00016438,2]
[394376915,1763509307277,-500.0,0.00016438,2]
[394376916,1763509307314,-500.0,0.00016438,2]
[394376917,1763509307358,-500.0,0.00016438,2]
[394376918,1763509307546,-500.0,0.00016438,2]
[394376919,1763509307587,-500.0,0.00016438,2]
[394376920,1763509307630,-500.0,0.00016438,2]
[394376921,1763509307671,-500.0,0.00016438,2]
[394376922,1763509307715,-315.52483878,0.00016438,2]
[394376923,1763509307755,-500.0,0.00016438,2]
[394376924,1763509307794,-500.0,0.00016438,2]
[394376925,1763509307837,-500.0,0.00016438,2]
[394376926,1763509307876,-419.0,0.00016438,2]
[394376927,1763509307912,-500.0,0.00016438,2]
[394376928,1763509307951,-151.0,0.00016438,2]
[394376929,1763509307988,-500.0,0.00016438,2]
[394376930,1763509308027,-260.439315,0.00016438,2]
[394376931,1763509308064,-260.439315,0.00016438,2]
[394376932,1763509308101,-260.439315,0.00016438,2]
[394376933,1763509308138,-260.439315,0.00016438,2]
[394376934,1763509308174,-260.439315,0.00016438,2]
[394376935,1763509308211,-260.439315,0.00016438,2]
[394376936,1763509308250,-260.439315,0.00016438,2]
[394376937,1763509308290,-260.439315,0.00016438,2]
[394376938,1763509308328,-1174.673754,0.00016438,2]
[394376939,1763509308364,-1174.673754,0.00016438,2]
[394376940,1763509308402,-1174.673754,0.00016438,2]
[394376941,1763509308438,-1174.673754,0.00016438,2]
[394376942,1763509308476,-1174.673754,0.00016438,2]
[394376943,1763509308514,-1174.673754,0.00016438,2]
[394376944,1763509308552,-1174.673754,0.00016438,2]
[394376945,1763509308590,-1174.673754,0.00016438,2]
[394376946,1763509308627,-500.0,0.00016438,2]
[394376947,1763509308662,-500.0,0.00016438,2]
[394376948,1763509308699,-500.0,0.00016438,2]
[394376949,1763509308736,-500.0,0.00016438,2]
[394376950,1763509308774,-444.21960168,0.00016438,2]
[394376951,1763509308811,-500.0,0.00016438,2]
[394376952,1763509308863,-500.0,0.00016438,2]
[394376953,1763509308904,-151.0,0.00016438,2]
[394376954,1763509308942,-151.0,0.00016438,2]
[394376955,1763509308982,-152.57122953,0.00016438,2]
[394376956,1763509309026,-152.19294515,0.00016438,2]
[394376957,1763509309064,-151.0,0.00016438,2]
[394376958,1763509309237,-151.0,0.00016438,2]
[394376959,1763509309276,-523.0,0.00016438,2]
[394376960,1763509309314,-151.0,0.00016438,2]
[394376961,1763509309352,-1245.0,0.00016438,2]
[394376962,1763509309391,-608.0,0.00016438,2]
[394376963,1763509309428,-150.0,0.00016438,2]
[394376964,1763509309471,-300.0,0.00016438,3]
[394376965,1763509309511,-450.0,0.00016438,4]
[394376966,1763509309549,-600.0,0.00016438,5]
[394376967,1763509309590,-368.7731183,0.00016438,6]
[394376968,1763509309633,-500.0,0.00016438,2]
[394376969,1763509309674,-500.0,0.00016438,2]
[394376970,1763509309714,-500.0,0.00016438,2]
[394376971,1763509309755,-500.0,0.00016438,2]
[394376972,1763509309796,-500.0,0.00016438,2]
[394376973,1763509309846,-588.24642204,0.00016438,2]
[394376974,1763509309888,-500.0,0.00016438,2]
[394376975,1763509309928,-500.0,0.00016438,2]
[394376976,1763509309968,-500.0,0.00016438,2]
[394376977,1763509310009,-500.0,0.00016438,2]
[394376978,1763509310054,-500.0,0.00016438,2]
[394376979,1763509310096,-500.0,0.00016438,2]
[394376980,1763509310137,-500.0,0.00016438,2]
[394376981,1763509310191,-500.0,0.00016438,2]
[394376982,1763509310233,-500.0,0.00016438,2]
[394376983,1763509310273,-500.0,0.00016438,2]
[394376984,1763509310314,-500.0,0.00016438,2]
[394376985,1763509310354,-500.0,0.00016438,2]
[394376986,1763509310395,-500.0,0.00016438,2]
[394376987,1763509310435,-500.0,0.00016438,2]
[394376988,1763509310478,-500.0,0.00016438,2]
[394376989,1763509310519,-500.0,0.00016438,2]
[394376990,1763509310561,-500.0,0.00016438,2]
[394376991,1763509310602,-500.0,0.00016438,2]
[394376992,1763509310644,-500.0,0.00016438,2]
[394376993,1763509310684,-500.0,0.00016438,2]
[394376994,1763509310723,-500.0,0.00016438,2]
[394376995,1763509310906,-500.0,0.00016438,2]
[394376996,1763509310916,-500.0,0.00016438,2]
[394376997,1763509311036,-500.0,0.00016438,2]
[394376998,1763509311046,-500.0,0.00016438,2]
[394376999,1763509311056,-251.29259707,0.00016438,2]
[394377000,1763509311075,-248.70740293,0.00016438,2]
[394377001,1763509311085,-51.29259707,0.00016438,2]
[394377002,1763509311119,-448.70740293,0.00016438,2]
[394377003,1763509311129,-500.0,0.00016438,2]
[394377004,1763509311138,-500.0,0.00016438,2]
[394377005,1763509311152,-500.0,0.00016438,2]
[394377006,1763509311161,-500.0,0.00016438,2]
[394377007,1763509311171,-500.0,0.00016438,2]
[394377008,1763509311180,-500.0,0.00016438,2]
[394377009,1763509311189,-500.0,0.00016438,2]
[394377010,1763509311199,-500.0,0.00016438,2]
[394377011,1763509311208,-500.0,0.00016438,2]
[394377012,1763509311218,-500.0,0.00016438,2]
[394377013,1763509311227,-500.0,0.00016438,2]
[394377014,1763509311236,-500.0,0.00016438,2]
[394377015,1763509311246,-500.0,0.00016438,2]
[394377016,1763509311255,-500.0,0.00016438,2]
[394377017,1763509311265,-500.0,0.00016438,2]
[394377018,1763509311275,-500.0,0.00016438,2]
[394377019,1763509311284,-500.0,0.00016438,2]
[394377020,1763509311293,-236.61259707,0.00016438,2]
[394377021,1763509311309,-263.38740293,0.00016438,2]
[394377022,1763509311318,-500.0,0.00016438,2]
[394377023,1763509311327,-500.0,0.00016438,2]
[394377024,1763509311336,-500.0,0.00016438,2]
[394377025,1763509311346,-500.0,0.00016438,2]
[394377026,1763509311355,-500.0,0.00016438,2]
[394377027,1763509311364,-500.0,0.00016438,2]
[394377028,1763509311372,-310.28476068,0.00016438,2]
[394377029,1763509311381,-309.59689357,0.00016438,2]
[394377030,1763509311391,-500.0,0.00016438,2]
[394377031,1763509311400,-209.39094282,0.00016438,2]
[394377032,1763509311415,-290.60905718,0.00016438,2]
[394377033,1763509311424,-500.0,0.00016438,2]
[394377034,1763509311434,-500.0,0.00016438,2]
[394377035,1763509311443,-1005.72094282,0.00016438,2]
[394377036,1763509311454,-570.36666664,0.00016438,2]
[394377037,1763509311463,-577.80333336,0.00016438,2]
[394377038,1763509311474,-400.77541225,0.00016438,2]
[394377039,1763509311497,-574.08,0.00016438,2]
[394377040,1763509311511,-23.42886385,0.00016438,2]
[394377041,1763509311521,-1576.08760946,0.00016438,2]
[394377042,1763509311531,-1576.08760946,0.00016438,2]
[394377043,1763509311540,-1576.08760946,0.00016438,2]
[394377044,1763509311550,-1576.08760946,0.00016438,2]
[394377045,1763509311559,-1576.08760946,0.00016438,2]
[394377046,1763509311568,-1576.08760946,0.00016438,2]
[394377047,1763509311577,-1576.08760946,0.00016438,2]
[394377048,1763509311587,-1576.08760946,0.00016438,2]
[394377049,1763509311596,-1235.70978642,0.00016438,2]
[394377050,1763509311607,-250.0,0.00016438,2]
[394377051,1763509311626,-90.37782304,0.00016438,2]
[394377052,1763509311635,-159.62217696,0.00016438,2]
[394377053,1763509311649,-250.0,0.00016438,2]
[394377054,1763509311660,-209.40437684,0.00016438,2]
[394377055,1763509311671,-250.0,0.00016438,2]
[394377056,1763509311682,-250.0,0.00016438,2]
[394377057,1763509311705,-250.0,0.00016438,2]
[394377058,1763509311720,-207.06105566,0.00016438,2]
[394377059,1763509311729,-42.93894434,0.00016438,2]
[394377060,1763509311740,-206.87651652,0.00016438,2]
[394377061,1763509311752,-250.0,0.00016438,2]
[394377062,1763509311763,-250.0,0.00016438,2]
[394377063,1763509311773,-250.0,0.00016438,2]
[394377064,1763509311784,-250.0,0.00016438,2]
[394377065,1763509311810,-250.0,0.00016438,2]
[394377066,1763509311829,-76.2721486,0.00016438,2]
[394377067,1763509311838,-173.7278514,0.00016438,2]
[394377068,1763509311849,-250.0,0.00016438,2]
[394377069,1763509311860,-250.0,0.00016438,2]
[394377070,1763509311871,-250.0,0.00016438,2]
[394377071,1763509311893,-250.0,0.00016438,2]
[394377072,1763509311913,-250.0,0.00016438,2]
[394377073,1763509311929,-186.1965154,0.00016308,3]
[394377074,1763509311943,-100.8434846,0.00016308,3]
[394377075,1763509311952,-100.90430178,0.00016438,2]
[394377076,1763509311963,-51.45545628,0.00016438,2]
[394377077,1763509311972,-448.54454372,0.00016438,2]
[394377078,1763509311983,-500.0,0.00016438,2]
[394377079,1763509311997,-500.0,0.00016438,2]
[394377080,1763509312012,-127.54306574,0.00016438,2]
[394377081,1763509312027,-372.45693426,0.00016438,2]
[394377082,1763509312042,-500.0,0.00016438,2]
[394377083,1763509312053,-500.0,0.00016438,2]
[394377084,1763509312065,-203.6306752,0.00016438,2]
[394377085,1763509312074,-296.3693248,0.00016438,2]
[394377086,1763509312088,-470.73141958,0.00016438,2]
[394377087,1763509312099,-500.0,0.00016438,2]
[394377088,1763509312110,-308.98686508,0.00016438,2]
[394377089,1763509312122,-191.01313492,0.00016438,2]
[394377090,1763509312144,-500.0,0.00016438,2]
[394377091,1763509312160,-500.0,0.00016438,2]
[394377092,1763509312176,-385.07447454,0.00016438,2]
[394377093,1763509312185,-114.92552546,0.00016438,2]
[394377094,1763509312196,-500.0,0.00016438,2]
[394377095,1763509312207,-500.0,0.00016438,2]
[394377096,1763509312221,-461.162084,0.00016438,2]
[394377097,1763509312230,-38.837916,0.00016438,2]
[394377098,1763509312241,-500.0,0.00016438,2]
[394377099,1763509312256,-609.84921775,0.00016438,2]
[394377100,1763509312271,-427.40047571,0.00016438,2]
[394377101,1763509312280,-72.59952429,0.00016438,2]
[394377102,1763509312295,-500.0,0.00016438,2]
[394377103,1763509312306,-500.0,0.00016438,2]
[394377104,1763509312320,-500.0,0.00016438,2]
[394377105,1763509312332,-3.48808517,0.00016438,2]
[394377106,1763509312341,-496.51191483,0.00016438,2]
[394377107,1763509312359,-500.0,0.00016438,2]
[394377108,1763509312377,-500.0,0.00016438,2]
[394377109,1763509312388,-79.57569463,0.00016438,2]
[394377110,1763509312397,-493.74088512,0.00016438,2]
[394377111,1763509312442,-500.0,0.00016438,2]
[394377112,1763509312452,-582.34672434,0.00016438,2]
[394377113,1763509312461,-617.65327566,0.00016438,2]
[394377114,1763509312475,-221.47,0.00016438,2]
[394377115,1763509312490,-500.0,0.00016438,2]
[394377116,1763509312505,-236.9643338,0.00016438,2]
[394377117,1763509312514,-121.82021757,0.00016438,2]
[394377118,1763509312566,-545.38229305,0.00016438,2]
[394377119,1763509312577,-908.88509884,0.00016438,2]
[394377120,1763509312586,-1576.08760946,0.00016438,2]
[394377121,1763509312595,-1576.08760946,0.00016438,2]
[394377122,1763509312604,-1576.08760946,0.00016438,2]
[394377123,1763509312614,-1576.08760946,0.00016438,2]
[394377124,1763509312623,-1576.08760946,0.00016438,2]
[394377125,1763509312632,-1576.08760946,0.00016438,2]
[394377126,1763509312641,-1576.08760946,0.00016438,2]
[394377127,1763509312650,-1576.08760946,0.00016438,2]
[394377128,1763509312659,-1576.08760946,0.00016438,2]
[394377129,1763509312668,-1576.08760946,0.00016438,2]
[394377130,1763509312678,-576.07758636,0.00016438,2]
[394377131,1763509312687,-576.07758636,0.00016438,2]
[394377132,1763509312696,-576.07758636,0.00016438,2]
[394377133,1763509312706,-576.07758636,0.00016438,2]
[394377134,1763509312715,-576.07758636,0.00016438,2]
[394377135,1763509312730,-576.07758636,0.00016438,2]
[394377136,1763509312739,-576.07758636,0.00016438,2]
[394377137,1763509312749,-576.07758636,0.00016438,2]
[394377138,1763509312758,-576.07758636,0.00016438,2]
[394377139,1763509312768,-576.07758636,0.00016438,2]
[394377140,1763509312777,-576.07758636,0.00016438,2]
[394377141,1763509312787,-576.07758636,0.00016438,2]
[394377142,1763509312796,-576.07758636,0.00016438,2]
[394377143,1763509312805,-576.07758636,0.00016438,2]
[394377144,1763509312814,-576.07758636,0.00016438,2]
[394377145,1763509312823,-576.07758636,0.00016438,2]
[394377146,1763509312833,-576.07758636,0.00016438,2]
[394377147,1763509312842,-576.07758636,0.00016438,2]
[394377148,1763509312851,-576.07758636,0.00016438,2]
[394377149,1763509312861,-576.07758636,0.00016438,2]
[394377150,1763509312870,-576.07758636,0.00016438,2]
[394377151,1763509312879,-576.07758636,0.00016438,2]
[394377152,1763509312888,-576.07758636,0.00016438,2]
[394377153,1763509312897,-576.07758636,0.00016438,2]
[394377154,1763509312906,-576.07758636,0.00016438,2]
[394377155,1763509312915,-576.07758636,0.00016438,2]
[394377156,1763509312924,-576.07758636,0.00016438,2]
[394377157,1763509312933,-576.07758636,0.00016438,2]
[394377158,1763509312942,-576.07758636,0.00016438,2]
[394377159,1763509312950,-576.07758636,0.00016438,2]
[394377160,1763509312959,-576.07758636,0.00016438,2]
[394377161,1763509312968,-576.07758636,0.00016438,2]
[394377162,1763509312978,-576.07758636,0.00016438,2]
[394377163,1763509312987,-576.07758636,0.00016438,2]
[394377164,1763509312996,-576.07758636,0.00016438,2]
[394377165,1763509313005,-576.07758636,0.00016438,2]
[394377166,1763509313014,-576.07758636,0.00016438,2]
[394377167,1763509313027,-1559.90456704,0.00016438,2]
[394377168,1763509313036,-1559.90456704,0.00016438,2]
[394377169,1763509313045,-1559.90456704,0.00016438,2]
[394377170,1763509313055,-1559.90456704,0.00016438,2]
[394377171,1763509313065,-1559.90456704,0.00016438,2]
[394377172,1763509313074,-1559.90456704,0.00016438,2]
[394377173,1763509313084,-1559.90456704,0.00016438,2]
[394377174,1763509313093,-1559.90456704,0.00016438,2]
[394377175,1763509313104,-1559.90456704,0.00016438,2]
[394377176,1763509313114,-1559.90456704,0.00016438,2]
[394377177,1763509313123,-1559.90456704,0.00016438,2]
[394377178,1763509313132,-151.000078,0.00016438,2]
[394377179,1763509313142,-1559.90456704,0.00016438,2]
[394377180,1763509313152,-1559.90456704,0.00016438,2]
[394377181,1763509313161,-1559.90456704,0.00016438,2]
[394377182,1763509313171,-1559.90456704,0.00016438,2]
[394377183,1763509313181,-1559.90456704,0.00016438,2]
[394377184,1763509313190,-1559.90456704,0.00016438,2]
[394377185,1763509313200,-1559.90456704,0.00016438,2]
[394377186,1763509313209,-1559.90456704,0.00016438,2]
[394377187,1763509313218,-1559.90456704,0.00016438,2]
[394377188,1763509313228,-1559.90456704,0.00016438,2]
[394377189,1763509313237,-1559.90456704,0.00016438,2]
[394377190,1763509313247,-1559.90456704,0.00016438,2]
[394377191,1763509313257,-1559.90456704,0.00016438,2]
[394377192,1763509313266,-1559.90456704,0.00016438,2]
[394377193,1763509313275,-555.06769791,0.00016438,2]
[394377194,1763509313285,-555.06769791,0.00016438,2]
[394377195,1763509313293,-555.06769791,0.00016438,2]
[394377196,1763509313304,-555.06769791,0.00016438,2]
[394377197,1763509313313,-450.69009521,0.00016438,2]
[394377198,1763509313435,-104.3776027,0.00016438,2]
[394377199,1763509313445,-555.06769791,0.00016438,2]
[394377200,1763509313454,-555.06769791,0.00016438,2]
[394377201,1763509313464,-555.06769791,0.00016438,2]
[394377202,1763509313474,-555.06769791,0.00016438,2]
[394377203,1763509313483,-555.06769791,0.00016438,2]
[394377204,1763509313493,-555.06769791,0.00016438,2]
[394377205,1763509313503,-555.06769791,0.00016438,2]
[394377206,1763509313513,-555.06769791,0.00016438,2]
[394377207,1763509313522,-555.06769791,0.00016438,2]
[394377208,1763509313531,-555.06769791,0.00016438,2]
[394377209,1763509313541,-555.06769791,0.00016438,2]
[394377210,1763509313550,-1624.0981706,0.00016438,2]
[394377211,1763509313560,-1624.0981706,0.00016438,2]
[394377212,1763509313569,-1624.0981706,0.00016438,2]
[394377213,1763509313580,-1624.0981706,0.00016438,2]
[394377214,1763509313589,-1624.0981706,0.00016438,2]
[394377215,1763509313599,-1624.0981706,0.00016438,2]
[394377216,1763509313609,-1624.0981706,0.00016438,2]
[394377217,1763509313619,-1624.0981706,0.00016438,2]
[394377218,1763509313629,-1624.0981706,0.00016438,2]
[394377219,1763509313638,-555.06769783,0.00016438,2]
[394377220,1763509313648,-152.515257,0.00016438,2]
[394377221,1763509313658,-152.515257,0.00016438,2]
[394377222,1763509313667,-152.515257,0.00016438,2]
[394377223,1763509313677,-152.515257,0.00016438,2]
[394377224,1763509313686,-152.515257,0.00016438,2]
[394377225,1763509313695,-152.515257,0.00016438,2]
[394377226,1763509313705,-152.515257,0.00016438,2]
[394377227,1763509313714,-152.515257,0.00016438,2]
[394377228,1763509314202,-259.025,0.00016308,2]
[394377237,1763509356723,727.69458056,0.00015825,2]
[394377238,1763509369255,-568.27,0.00016206,3]
[394377239,1763509369311,-419059.25297039,0.00016216,2]
[394377240,1763509369324,-568.27,0.00016216,2]
[394377241,1763509369343,-79804.20702961,0.00016216,2]
[394377242,1763509369714,160.37535427,0.00015694,2]
[394377243,1763509371152,288.67563768,0.00015981,2]
[394377244,1763509371378,100000.0,0.00039889,30]
[394377245,1763509386125,216.0922412,0.00015439,2]
[394377246,1763509393145,170.27250786,0.00032,120]
[394377247,1763509397081,5000.0,0.00016138,2]
[394377248,1763509420334,5000.0,0.0001614,2]
[394377249,1763509430493,195.17389373,0.00032877,120]
[394377250,1763509433910,100000.0,0.00039889,30]
[394377251,1763509442644,5000.0,0.0001614,2]
[394377252,1763509465901,0.01,0.0001614,2]
[394377253,1763509465924,4999.99,0.0001614,2]
[394377254,1763509480963,1013.21804118,0.00015825,2]
[394377255,1763509485516,3986.80195882,0.00015894,2]
[394377256,1763509485539,187.56186783,0.00015894,2]
[394377257,1763509488204,1935.45866777,0.0001614,2]
[394377258,1763509496152,100000.0,0.00039889,30]